Workbook

Sheet MOHR
B2: KIINDULÓ ADATOK | AB2: =IF(G3=0,"LEÁLLÍTVA",IF(G7=2,"SZÜNET","LEJÁTSZÁS X"&TEXT(G5,"#0,00")&"")) -> LEÁLLÍTVA
B3: Az y és z tengelyekre valamint az yz tengelypárra számolt tehetetlenségi nyomatékok: | G3: 0
G4: 0
G5: =G4*6.25 -> 0 | V5: SZERKESZTÉS LÉPÉSEI
B6: mértékegység:
B7: Iy = | C7: 80 | D7: =INDEX(H11:H14,MATCH(H15,H11:H14,0)) -> cm^4 | G7: 1
B8: Iz = | C8: 30 | D8: =INDEX(H11:H14,MATCH(H15,H11:H14,0)) -> cm^4 | V8: =CALC!K42 -> 
B9: Iyz = | C9: -40 | D9: =INDEX(H11:H14,MATCH(H15,H11:H14,0)) -> cm^4
B11: n irány y tengellyel bezárt szöge: | G11: 1 | H11: mm^4
B12: ϕ = | C12: 45 | D12: fok | G12: 2 | H12: cm^4 | W12: =CALC!K43 -> 
G13: 3 | H13: dm^4
B14: A megadott adatok alapján a súlyponti tehetetlenségi tenzor: | G14: 4 | H14: m^4
G15: 1 | H15: cm^4
C16: =C7 -> 80 | D16: =-1*C9 -> 40 | E16: =INDEX(H11:H14,MATCH(H15,H11:H14,0)) -> cm^4
C17: =-1*C9 -> 40 | D17: =C8 -> 30 | W17: =CALC!K44 -> 
B20: EREDMÉNYEK
B21: A Mohr-kör középpontja:
B22: C= | C22: =CALC!C18 -> 55 | D22: =INDEX(H11:H14,MATCH(H15,H11:H14,0)) -> cm^4 | W22: =CALC!K45 -> 
B23: A Mohr-kör sugara:
B24: R= | C24: =CALC!C19 -> 47.16990566 | D24: =INDEX(H11:H14,MATCH(H15,H11:H14,0)) -> cm^4
B26: A fő tehetetlenségi nyomatékok:
B27: I1= | C27: =CALC!C21 -> 102.1699057 | D27: =INDEX(H11:H14,MATCH(H15,H11:H14,0)) -> cm^4 | W27: =CALC!K46 -> 
B28: I2= | C28: =CALC!C22 -> 7.83009434 | D28: =INDEX(H11:H14,MATCH(H15,H11:H14,0)) -> cm^4
B30: z tengely ② főtengellyel bezárt szöge:
B32: α= | C32: =CALC!B76 -> 28.9973084 | D32: fok
B34: Az n és m tengelyekre valamint az nm tengelypárra számolt tehetetlenségi nyomatékok:
V35: készítette: Horváth Péter, egyetemi tanársegéd
B37: In = | C37: =CALC!C61 -> 95 | D37: =INDEX(H11:H14,MATCH(H15,H11:H14,0)) -> cm^4 | V37: http://www.sze.hu/~horvpe/
B38: Im = | C38: =CALC!C62 -> 15 | D38: =INDEX(H11:H14,MATCH(H15,H11:H14,0)) -> cm^4
B39: Inm = | C39: =CALC!C63 -> 25 | D39: =INDEX(H11:H14,MATCH(H15,H11:H14,0)) -> cm^4

Sheet CALC (hidden)
B1: INPUT | G1: step | H1: =MOHR!G3 -> 0 | M1: =ROUNDDOWN(H1,0) -> 0 | W1: n | X1: nm
B2: inertia tensor: | D2: n_dir | H2: =H3/100 -> 0.1 | U2: 15 | V2: 0 | W2: =IF($M$1<$U$2,NA(),$C$18+$C$19*COS(V2*PI()/180)) ->  | X2: =IF($M$1<$U$2,NA(),$C$19*SIN(V2*PI()/180)) ->  | Z2: YZ_line | AA2: n | AB2: nm | AD2: extend | AH2: INSTRUCTIONS
B3: =MOHR!C7 -> 80 | C3: =-1*MOHR!C9 -> 40 | D3: =MOHR!C12 -> 45 | H3: 10 | V3: 1 | Y3: 12 | AA3: =IF(M1<Y3,NA(),C14+(AD3/100)*C25) ->  | AB3: =IF(M1<Y3,NA(),D14+(AD3/100)*D25) ->  | AD3: 5 | AG3: 1 | AH3: 1. lépés: koordinátarendszer felvétele
B4: =-1*MOHR!C9 -> 40 | C4: =MOHR!C8 -> 30 | V4: 2 | AA4: =IF(M1<Y3,NA(),C15+(AD3/100)*C24) ->  | AB4: =IF(M1<Y3,NA(),D15+(AD3/100)*D24) ->  | AG4: 2 | AH4: Vegyük fel vízszintesen az In, függőlegesen az Inm tengelyeket
V5: 3 | AG5: 3 | AH5: 2. lépés: Y pont felvétele
B6: Iy | C6: =B3 -> 80 | V6: 4 | Z6: Y | AA6: n | AB6: nm | AD6: 5 | AG6: 4 | AH6: ="A vízszintes tengelyen vegyük fel az Iy="&TEXT(C6,"0")&" koordinátát" -> A vízszintes tengelyen vegyük fel az Iy=80 koordinátát
B7: Iz | C7: =C4 -> 30 | V7: 5 | Y7: 4 | AA7: =IF(M1<Y7,NA(),C14) ->  | AB7: =IF(M1<Y7,NA(),0) ->  | AG7: 5 | AH7: ="Majd pedig a függőleges tengelyen az Iyz="&TEXT(C8,"0")&" koordinátát" -> Majd pedig a függőleges tengelyen az Iyz=-40 koordinátát
B8: Iyz | C8: =-1*C3 -> -40 | V8: 6 | AA8: =IF(M1<Y7,NA(),C14) ->  | AB8: =IF(M1<Y7,NA(),D14+(AD6/100)*G14*D19) ->  | AG8: 6 | AH8: Igy megkaptuk az Y pontot
C9: y | D9: z | V9: 7 | AG9: 7 | AH9: 3. lépés: Z pont felvétele
B10: en | C10: =COS(D3*PI()/180) -> 0.7071067812 | D10: =SIN(D3*PI()/180) -> 0.7071067812 | V10: 8 | Y10: 5 | AA10: =IF(M1<Y10,NA(),0) ->  | AB10: =IF(M1<Y10,NA(),D14) ->  | AG10: 8 | AH10: ="A vízszintes tengelyen vegyük fel az Iz="&TEXT(C7,"0")&" koordinátát" -> A vízszintes tengelyen vegyük fel az Iz=30 koordinátát
B11: em | C11: =COS((D3+90)*PI()/180) -> -0.7071067812 | D11: =SIN((D3+90)*PI()/180) -> 0.7071067812 | V11: 9 | AA11: =IF(M1<Y10,NA(),C14+(AD6/100)*F14*D19) ->  | AB11: =IF(M1<Y10,NA(),D14) ->  | AG11: 9 | AH11: ="Majd pedig a függőleges tengelyen a -Iyz="&TEXT(-1*C8,"0")&" koordinátát" -> Majd pedig a függőleges tengelyen a -Iyz=40 koordinátát
V12: 10 | AG12: 10 | AH12: Így megkaptuk a Z pontot
C13: n | D13: nm | V13: 11 | Z13: Z | AA13: n | AB13: nm | AG13: 11 | AH13: 4. lépés: Mohr kör középpontjána
B14: Y | C14: =C6 -> 80 | D14: =C8 -> -40 | F14: =IF(C14=0,0,IF(C14>0,1,-1)) -> 1 | G14: -1 | V14: 12 | Y14: 8 | AA14: =IF(M1<Y14,NA(),C15) ->  | AB14: =IF(M1<Y14,NA(),0) ->  | AG14: 12 | AH14: Kössük össze a Y és Z pontokat egy egyenessel
B15: Z | C15: =C7 -> 30 | D15: =-1*C8 -> 40 | F15: 1 | G15: 1 | V15: 13 | AA15: =IF(M1<Y14,NA(),C15) ->  | AB15: =IF(M1<Y14,NA(),D15+(AD6/100)*G15*D19) ->  | AG15: 13 | AH15: Az így behúzott egyenes és a vízszintes In tengely metszéspontja lesz a tehetetlenségi Mohr kör középpontja. Jelöljük ezt C-vel.
B16: P | C16: =C14 -> 80 | D16: =D15 -> 40 | F16: 1 | G16: 1 | V16: 14 | AG16: 14 | AH16: 5. lépés: Mohr kör megrajzolása, fő tehetetlenségi nyomatékok meghatározása
B17: ZP | C17: =C16-C15 -> 50 | F17: =IF(C17=0,0,IF(C17>0,1,-1)) -> 1 | V17: 15 | Y17: 9 | AA17: =IF(M1<Y17,NA(),0) ->  | AB17: =IF(M1<Y17,NA(),D15) ->  | AG17: 15 | AH17: Most bökjük be a körzőnket ebbe a C pontba és körzőzzünk CY (=CZ) méretű sugárral, Így megkapjuk a Mohr kört.
B18: C | C18: =(C14+C15)/2 -> 55 | D18: 0 | V18: 16 | AA18: =IF(M1<Y17,NA(),C15+(AD6/100)*F15*D19) ->  | AB18: =IF(M1<Y17,NA(),D15) ->  | AG18: 16 | AH18: A Mohr körnek a vízszintes In tengellyel vett jobboldali metszéspontja adja meg a maximális I1-es fő tehetetlenségi nyomatékot
B19: R | C19: =(((C14-C15)/2)^2+D14^2)^0.5 -> 47.16990566 | D19: =2*C19 -> 94.33981132 | V19: 17 | AG19: 17 | AH19: A Mohr körnek vízszintes In tengellyel vett baloldali metszéspontja adja meg a minimálismális I2-es fő tehetetlenségi nyomatékot
V20: 18 | AG20: 18 | AH20: Ezzel tehát a fő tehetetlenségi nyomatékokat meghatároztuk, kezdjünk el foglalkozni a tehetetlenségi főtengelyekkel.
B21: I1 | C21: =C18+C19 -> 102.1699057 | D21: 0 | F21: =ABS(C21) -> 102.1699057 | G21: =IF(C21>0,1,-1) -> 1 | V21: 19 | AG21: 19 | AH21: 6. lépés: Póluspont meghatározása
B22: I2 | C22: =C18-C19 -> 7.83009434 | D22: 0 | F22: =ABS(C22) -> 7.83009434 | G22: =IF(C22>0,1,-1) -> 1 | V22: 20 | AG22: 20 | AH22: Ehhez először az Y ponton keresztűl húzzunk párhuzamost az y tengellyel.
V23: 21 | AG23: 21 | AH23: Ezután a Z ponton keresztűl húzzunk párhuzamost a z tengellyel.
B24: rYZ | C24: =C15-C14 -> -50 | D24: =D15-D14 -> 80 | F24: =MAX(F21:F22) -> 102.1699057 | G24: =INDEX(G21:G22,MATCH(F24,F21:F22)) -> 1 | V24: 22 | AG24: 22 | AH24: Az imént behúzott két tengely a Mohr körön fogja metszeni egymást. Ezt a metszéspontot nevezzük pólus pontnak és P-vel jelöljük
B25: rZY | C25: =C14-C15 -> 50 | D25: =D14-D15 -> -80 | V25: 23 | AG25: 23 | AH25: 7. lépés: tehetetlenségi főtengelyek berajzolása
V26: 24 | AG26: 24 | AH26: A P pontot kössük össze az I1-ponttal. Így megkaptuk az első tehetetlenségi főtengelyt, jelöljük ezt ① -gyel
B27: fix_v | C27: 0 | D27: =MIN(-1*C19,AC30) -> -54.1509717 | E27: =MIN(-1*C19,AC30)*F27/100 -> -54.1509717 | F27: 100 | V27: 25 | AG27: 25 | AH27: A P pontot ezután kössük össze az I2-ponttal. Így megkaptuk a második tehetetlenségi főtengelyt, jelöljük ezt ② -vel
C28: 0 | D28: =MAX(AC31,C19) -> 54.1509717 | E28: =MAX(AC31,C19)*F27/100 -> 54.1509717 | V28: 26 | AG28: 26 | AH28: Megjegyzés: nyilakat úgy rajzoljuk be, hogy az ① és ② tengelyek irányai jobbsodrású rendszert alkossanak
V29: 27 | Z29: y | AA29: n | AB29: nm | AG29: 27 | AH29: Ezzel kész vagyunk a tehetetlenségi főirányok meghatározásával is
B30: fix_h | C30: =C18-D28*F30/100 -> 0.8490283019 | D30: 0 | F30: 100 | V30: 28 | Y30: 20 | AA30: =IF(M1<Y30,NA(),C14) ->  | AB30: =IF(M1<Y30,NA(),D14+G14*D19*AD30/100) ->  | AC30: =D14+G14*D19*AD30/100 -> -54.1509717 | AD30: 15 | AG30: 28 | AH30: Adott n és m irányhokhoz tartozó tehetetlenségi nyomatékok meghatározása
C31: =C18+D28*F30/100 -> 109.1509717 | D31: 0 | V31: 29 | AA31: =IF(M1<Y30,NA(),C14) ->  | AB31: =IF(M1<K70,NA(),-1*AB30) ->  | AC31: =-1*AC30 -> 54.1509717 | AG31: 29 | AH31: Vegyük fel a póluspontban az adott n irányt
V32: 30 | AG32: 30 | AH32: Erre merőlegesen vegyük fel az m irányt
C33: n | D33: nm | V33: 31 | Z33: arr | AA33: =AA31 ->  | AB33: =MAX(AB31,AB30) ->  | AD33: 7 | AG33: 31 | AH33: Hosszabbítsuk meg a vonalakat úgy, hogy metsszék a Mohr kört
B34: e1 | C34: =C16 -> 80 | D34: =D16 -> 40 | V34: 32 | AA34: =AA30-(D19*AD33/100)*SIN(AD34*PI()/180) ->  | AB34: =AB33-(D19*AD33/100)*COS(AD34*PI()/180) ->  | AD34: 20 | AG34: 32 | AH34: n egyenes és a Mohr kör metszéspontja legyen N pont
C35: =C21 -> 102.1699057 | D35: 0 | V35: 33 | AA35: =AA31 ->  | AB35: =MAX(AB31,AB30) ->  | AG35: 33 | AH35: m egyenes és a Mohr kör metszéspontja legyen M pont
V36: 34 | AA36: =AA30+(D19*AD33/100)*SIN(AD34*PI()/180) ->  | AB36: =AB35-(D19*AD33/100)*COS(AD34*PI()/180) ->  | AG36: 34 | AH36: N pontot vetítsük le a vízszintes és függőleges tengelyekre, így megkapjuk In és Inm tehetetlenségi nyomatékokat
B37: e2 | C37: =C16 -> 80 | D37: =D16 -> 40 | V37: 35 | AG37: 35 | AH37: M pontot vetítsük le a vízszintes és függőleges tengelyekre, így megkapjuk Im és -Inm tehetetlenségi nyomatékokat
C38: =C22 -> 7.83009434 | D38: 0 | V38: 36 | Y38: 21 | Z38: z | AA38: =IF(M1<Y38,NA(),C15-F17*D19*AD38/100) ->  | AB38: =IF(M1<Y38,NA(),D15) ->  | AD38: 15
V39: 37 | AA39: =IF(M1<Y38,NA(),C16+F17*D19*AD38/100) ->  | AB39: =IF(M1<Y38,NA(),D15) -> 
E40: e | V40: 38
B41: rPI1 | C41: =C21-C16 -> 22.16990566 | D41: =D21-D16 -> -40 | E41: =C41/(C41^2+D41^2)^0.5 -> 0.4847685324 | F41: =D41/(C41^2+D41^2)^0.5 -> -0.8746424812 | V41: 39 | Z41: arr | AA41: =MIN($AA$38,$AA$39) ->  | AB41: =AB39 ->  | AD41: =AD33 -> 7
B42: rI1P | C42: =C16-C21 -> -22.16990566 | D42: =D16-D21 -> 40 | E42: =C42/(C42^2+D42^2)^0.5 -> -0.4847685324 | F42: =D42/(C42^2+D42^2)^0.5 -> 0.8746424812 | H42: =(IF(AND(D42>0,C42>0),(ATAN(D42/C42))*(180/PI()),IF(AND(D42<0,C42>0),360+(ATAN(D42/C42))*(180/PI()),IF(AND(D42=0,C42>0),0,IF(AND(C42=0,D42>0),90,IF(AND(D42=0,C42<0),180,IF(AND(C42=0,D42<0),270,180+(ATAN(D42/C42))*(180/PI())))))))) -> 118.9973084 | K42: =VLOOKUP(M1,AG46:AH81,2) ->  | V42: 40 | AA42: =MIN(AA38,AA39)+(D19*AD41/100)*COS(AD42*PI()/180) ->  | AB42: =AB39+(D19*AD41/100)*SIN(AD42*PI()/180) ->  | AD42: =AD34 -> 20
K43: =VLOOKUP(M1,AI46:AJ81,2) ->  | V43: 41 | AA43: =MIN(AA38,AA39) ->  | AB43: =AB39 -> 
B44: rPI2 | C44: =C22-C16 -> -72.16990566 | D44: =D22-D16 -> -40 | E44: =C44/(C44^2+D44^2)^0.5 -> -0.8746424812 | F44: =D44/(C44^2+D44^2)^0.5 -> -0.4847685324 | K44: =VLOOKUP(M1,AK46:AL81,2) ->  | V44: 42 | AA44: =MIN(AA38,AA39)+(D19*AD41/100)*COS(AD42*PI()/180) ->  | AB44: =AB39-(D19*AD41/100)*SIN(AD42*PI()/180) -> 
B45: rI2P | C45: =C16-C22 -> 72.16990566 | D45: =D16-D22 -> 40 | E45: =C45/(C45^2+D45^2)^0.5 -> 0.8746424812 | F45: =D45/(C45^2+D45^2)^0.5 -> 0.4847685324 | H45: =(IF(AND(D45>0,C45>0),(ATAN(D45/C45))*(180/PI()),IF(AND(D45<0,C45>0),360+(ATAN(D45/C45))*(180/PI()),IF(AND(D45=0,C45>0),0,IF(AND(C45=0,D45>0),90,IF(AND(D45=0,C45<0),180,IF(AND(C45=0,D45<0),270,180+(ATAN(D45/C45))*(180/PI())))))))) -> 28.9973084 | K45: =VLOOKUP(M1,AM46:AN81,2) ->  | V45: 43 | AH45: row1 | AI45: row2 | AK45: row3 | AM45: row4 | AO45: row5
K46: =VLOOKUP(M1,AO46:AP81,2) ->  | V46: 44 | AG46: 0 | AH46: ="" ->  | AI46: 0 | AJ46: ="" ->  | AK46: 0 | AL46: ="" ->  | AM46: 0 | AN46: ="" ->  | AO46: 0 | AP46: ="" -> 
V47: 45 | AG47: 1 | AH47: =AH3 -> 1. lépés: koordinátarendszer felvétele | AI47: 1 | AJ47: ="" ->  | AK47: 1 | AL47: ="" ->  | AM47: 1 | AN47: ="" ->  | AO47: 1 | AP47: ="" -> 
D48: n | E48: In | V48: 46 | AG48: 2 | AH48: =AH3 -> 1. lépés: koordinátarendszer felvétele | AI48: 2 | AJ48: =AH4 -> Vegyük fel vízszintesen az In, függőlegesen az Inm tengelyeket | AK48: 2 | AL48: ="" ->  | AM48: 2 | AN48: ="" ->  | AO48: 2 | AP48: ="" -> 
B49: =B3 -> 80 | C49: =C3 -> 40 | D49: =COS(D3*PI()/180) -> 0.7071067812 | E49: =MMULT(B49:C50,D49:D50) -> 84.85281374 | V49: 47 | AA49: n | AB49: nm | AD49: 10 | AG49: 3 | AH49: =AH5 -> 2. lépés: Y pont felvétele | AI49: 3 | AJ49: ="" ->  | AK49: 3 | AL49: ="" ->  | AM49: 3 | AN49: ="" ->  | AO49: 3 | AP49: ="" -> 
B50: =B4 -> 40 | C50: =C4 -> 30 | D50: =SIN(D3*PI()/180) -> 0.7071067812 | E50: 49.49747468 | V50: 48 | Y50: 24 | Z50: e1 | AA50: =IF(M1<Y50,NA(),C21+E41*D19*AD49/100) ->  | AB50: =IF(M1<Y50,NA(),D21+F41*D19*AD49/100) ->  | AG50: 4 | AH50: =AH5 -> 2. lépés: Y pont felvétele | AI50: 4 | AJ50: =AH6 -> A vízszintes tengelyen vegyük fel az Iy=80 koordinátát | AK50: 4 | AL50: ="" ->  | AM50: 4 | AN50: ="" ->  | AO50: 4 | AP50: ="" -> 
E51: In | V51: 49 | AA51: =IF(M1<Y50,NA(),C16+E42*D19*AD49/100) ->  | AB51: =IF(M1<Y50,NA(),D16+F42*D19*AD49/100) ->  | AG51: 5 | AH51: =AH5 -> 2. lépés: Y pont felvétele | AI51: 5 | AJ51: =AH6 -> A vízszintes tengelyen vegyük fel az Iy=80 koordinátát | AK51: 5 | AL51: =AH7 -> Majd pedig a függőleges tengelyen az Iyz=-40 koordinátát | AM51: 5 | AN51: ="" ->  | AO51: 5 | AP51: ="" -> 
C52: =D49 -> 0.7071067812 | D52: =D50 -> 0.7071067812 | E52: =MMULT(C52:D52,E49:E50) -> 95 | V52: 50 | AG52: 6 | AH52: =AH5 -> 2. lépés: Y pont felvétele | AI52: 6 | AJ52: =AH6 -> A vízszintes tengelyen vegyük fel az Iy=80 koordinátát | AK52: 6 | AL52: =AH7 -> Majd pedig a függőleges tengelyen az Iyz=-40 koordinátát | AM52: 6 | AN52: =AH8 -> Igy megkaptuk az Y pontot | AO52: 6 | AP52: ="" -> 
E53: Im | V53: 51 | Y53: 24 | Z53: arr1 | AA53: =IF(M1<Y53,NA(),AA50) ->  | AB53: =IF(M1<Y53,NA(),AB50) ->  | AD53: 7 | AG53: 7 | AH53: =AH9 -> 3. lépés: Z pont felvétele | AI53: 7 | AJ53: ="" ->  | AK53: 7 | AL53: ="" ->  | AM53: 7 | AN53: ="" ->  | AO53: 7 | AP53: ="" -> 
B54: =B3 -> 80 | C54: =C3 -> 40 | D54: =COS((D3+90)*PI()/180) -> -0.7071067812 | E54: =MMULT(B54:C55,D54:D55) -> -28.28427125 | V54: 52 | AA54: =IF(M1<Y53,NA(),AA53+(D19*AD53/100)*COS((H42+AD54)*PI()/180)) ->  | AB54: =IF(M1<Y53,NA(),AB53+(D19*AD53/100)*SIN((H42+AD54)*PI()/180)) ->  | AD54: 20 | AG54: 8 | AH54: =AH9 -> 3. lépés: Z pont felvétele | AI54: 8 | AJ54: =AH10 -> A vízszintes tengelyen vegyük fel az Iz=30 koordinátát | AK54: 8 | AL54: ="" ->  | AM54: 8 | AN54: ="" ->  | AO54: 8 | AP54: ="" -> 
B55: =B4 -> 40 | C55: =C4 -> 30 | D55: =SIN((D3+90)*PI()/180) -> 0.7071067812 | E55: -7.071067812 | V55: 53 | AG55: 9 | AH55: =AH9 -> 3. lépés: Z pont felvétele | AI55: 9 | AJ55: =AH10 -> A vízszintes tengelyen vegyük fel az Iz=30 koordinátát | AK55: 9 | AL55: =AH11 -> Majd pedig a függőleges tengelyen a -Iyz=40 koordinátát | AM55: 9 | AN55: ="" ->  | AO55: 9 | AP55: ="" -> 
E56: Im | V56: 54 | Z56: arr2 | AA56: =IF(M1<Y53,NA(),AA53) ->  | AB56: =IF(M1<Y53,NA(),AB53) ->  | AG56: 10 | AH56: =AH9 -> 3. lépés: Z pont felvétele | AI56: 10 | AJ56: =AH10 -> A vízszintes tengelyen vegyük fel az Iz=30 koordinátát | AK56: 10 | AL56: =AH11 -> Majd pedig a függőleges tengelyen a -Iyz=40 koordinátát | AM56: 10 | AN56: =AH12 -> Így megkaptuk a Z pontot | AO56: 10 | AP56: ="" -> 
C57: =D54 -> -0.7071067812 | D57: =D55 -> 0.7071067812 | E57: =MMULT(C57:D57,E54:E55) -> 15 | V57: 55 | AA57: =IF(M1<Y53,NA(),AA53+(D19*AD53/100)*COS((H42-AD54)*PI()/180)) ->  | AB57: =IF(M1<Y53,NA(),AB56+(D19*AD53/100)*SIN((H42-AD54)*PI()/180)) ->  | AG57: 11 | AH57: =AH13 -> 4. lépés: Mohr kör középpontjána | AI57: 11 | AJ57: ="" ->  | AK57: 11 | AL57: ="" ->  | AM57: 11 | AN57: ="" ->  | AO57: 11 | AP57: ="" -> 
E58: -Inm | V58: 56 | AG58: 12 | AH58: =AH13 -> 4. lépés: Mohr kör középpontjána | AI58: 12 | AJ58: =AH14 -> Kössük össze a Y és Z pontokat egy egyenessel | AK58: 12 | AL58: ="" ->  | AM58: 12 | AN58: ="" ->  | AO58: 12 | AP58: ="" -> 
E59: =MMULT(C57:D57,E49:E50) -> -25 | V59: 57 | Y59: 25 | Z59: e2 | AA59: n | AB59: nm | AG59: 13 | AH59: =AH13 -> 4. lépés: Mohr kör középpontjána | AI59: 13 | AJ59: =AH14 -> Kössük össze a Y és Z pontokat egy egyenessel | AK59: 13 | AL59: =AH15 -> Az így behúzott egyenes és a vízszintes In tengely metszéspontja lesz a tehetetlenségi Mohr kör középpontja. Jelöljük ezt C-vel. | AM59: 13 | AN59: ="" ->  | AO59: 13 | AP59: ="" -> 
V60: 58 | AA60: =IF(M1<Y59,NA(),C22+E44*D19*AD49/100) ->  | AB60: =IF(M1<Y59,NA(),D22+F44*D19*AD49/100) ->  | AG60: 14 | AH60: =AH16 -> 5. lépés: Mohr kör megrajzolása, fő tehetetlenségi nyomatékok meghatározása | AI60: 14 | AJ60: ="" ->  | AK60: 14 | AL60: ="" ->  | AM60: 14 | AN60: ="" ->  | AO60: 14 | AP60: ="" -> 
B61: In | C61: =E52 -> 95 | V61: 59 | AA61: =IF(M1<Y59,NA(),C16+E45*D19*AD49/100) ->  | AB61: =IF(M1<Y59,NA(),D16+F45*D19*AD49/100) ->  | AG61: 15 | AH61: =AH16 -> 5. lépés: Mohr kör megrajzolása, fő tehetetlenségi nyomatékok meghatározása | AI61: 15 | AJ61: =AH17 -> Most bökjük be a körzőnket ebbe a C pontba és körzőzzünk CY (=CZ) méretű sugárral, Így megkapjuk a Mohr kört. | AK61: 15 | AL61: ="" ->  | AM61: 15 | AN61: ="" ->  | AO61: 15 | AP61: ="" -> 
B62: Im | C62: =E57 -> 15 | V62: 60 | AG62: 16 | AH62: =AH16 -> 5. lépés: Mohr kör megrajzolása, fő tehetetlenségi nyomatékok meghatározása | AI62: 16 | AJ62: =AH17 -> Most bökjük be a körzőnket ebbe a C pontba és körzőzzünk CY (=CZ) méretű sugárral, Így megkapjuk a Mohr kört. | AK62: 16 | AL62: =AH18 -> A Mohr körnek a vízszintes In tengellyel vett jobboldali metszéspontja adja meg a maximális I1-es fő tehetetlenségi nyomatékot | AM62: 16 | AN62: ="" ->  | AO62: 16 | AP62: ="" -> 
B63: Inm | C63: =-1*E59 -> 25 | V63: 61 | Y63: 25 | Z63: arr1 | AA63: =IF(M1<Y63,NA(),IF(D16>0,AA61,AA60)) ->  | AB63: =IF(M1<Y63,NA(),IF(D16>0,AB61,AB60)) ->  | AG63: 17 | AH63: =AH16 -> 5. lépés: Mohr kör megrajzolása, fő tehetetlenségi nyomatékok meghatározása | AI63: 17 | AJ63: =AH17 -> Most bökjük be a körzőnket ebbe a C pontba és körzőzzünk CY (=CZ) méretű sugárral, Így megkapjuk a Mohr kört. | AK63: 17 | AL63: =AH18 -> A Mohr körnek a vízszintes In tengellyel vett jobboldali metszéspontja adja meg a maximális I1-es fő tehetetlenségi nyomatékot | AM63: 17 | AN63: =AH19 -> A Mohr körnek vízszintes In tengellyel vett baloldali metszéspontja adja meg a minimálismális I2-es fő tehetetlenségi nyomatékot | AO63: 17 | AP63: ="" -> 
V64: 62 | AA64: =IF(M1<Y63,NA(),AA63+(D19*AD53/100)*COS((IF(D16>0,180,0)+H45+AD54)*PI()/180)) ->  | AB64: =IF(M1<Y63,NA(),AB63+(D19*AD53/100)*SIN(((IF(D16>0,180,0)+H45+AD54)*PI()/180))) ->  | AG64: 18 | AH64: =AH16 -> 5. lépés: Mohr kör megrajzolása, fő tehetetlenségi nyomatékok meghatározása | AI64: 18 | AJ64: =AH17 -> Most bökjük be a körzőnket ebbe a C pontba és körzőzzünk CY (=CZ) méretű sugárral, Így megkapjuk a Mohr kört. | AK64: 18 | AL64: =AH18 -> A Mohr körnek a vízszintes In tengellyel vett jobboldali metszéspontja adja meg a maximális I1-es fő tehetetlenségi nyomatékot | AM64: 18 | AN64: =AH19 -> A Mohr körnek vízszintes In tengellyel vett baloldali metszéspontja adja meg a minimálismális I2-es fő tehetetlenségi nyomatékot | AO64: 18 | AP64: =AH20 -> Ezzel tehát a fő tehetetlenségi nyomatékokat meghatároztuk, kezdjünk el foglalkozni a tehetetlenségi főtengelyekkel.
B65: inertia tensor: | M65: X_values | N65: PWL | P65: aspect_cprrector | V65: 63 | AG65: 19 | AH65: =AH21 -> 6. lépés: Póluspont meghatározása | AI65: 19 | AJ65: ="" ->  | AK65: 19 | AL65: ="" ->  | AM65: 19 | AN65: ="" ->  | AO65: 19 | AP65: ="" -> 
B66: =C61 -> 95 | C66: =-1*C63 -> -25 | J66: Labels | K66: 6 | L66: Y | M66: =IF(M1<K66,NA(),C14) ->  | N66: =IF(M1<K66,NA(),D14) ->  | P66: =B3 -> 80 | Q66: =C3 -> 40 | V66: 64 | W66: =IF($M$1<$U$2,NA(),$C$18+$C$19*COS(V66*PI()/180)) ->  | X66: =IF($M$1<$U$2,NA(),$C$19*SIN(V66*PI()/180)) ->  | Z66: arr2 | AA66: =IF(M1<Y63,NA(),AA63) ->  | AB66: =IF(M1<Y63,NA(),AB63) ->  | AG66: 20 | AH66: =AH21 -> 6. lépés: Póluspont meghatározása | AI66: 20 | AJ66: =AH22 -> Ehhez először az Y ponton keresztűl húzzunk párhuzamost az y tengellyel. | AK66: 20 | AL66: ="" ->  | AM66: 20 | AN66: ="" ->  | AO66: 20 | AP66: ="" -> 
B67: =-1*C63 -> -25 | C67: =C62 -> 15 | K67: 10 | L67: Z | M67: =IF(M1<K67,NA(),C15) ->  | N67: =IF(M1<K67,NA(),D15) ->  | P67: =B4 -> 40 | Q67: =C4 -> 30 | V67: 65 | AA67: =IF(M1<Y63,NA(),AA63+(D19*AD53/100)*COS(((IF(D16>0,180,0)+H45-AD54)*PI()/180))) ->  | AB67: =IF(M1<Y63,NA(),AB66+(D19*AD53/100)*SIN(((IF(D16>0,180,0)+H45-AD54)*PI()/180))) ->  | AG67: 21 | AH67: =AH21 -> 6. lépés: Póluspont meghatározása | AI67: 21 | AJ67: =AH22 -> Ehhez először az Y ponton keresztűl húzzunk párhuzamost az y tengellyel. | AK67: 21 | AL67: =AH23 -> Ezután a Z ponton keresztűl húzzunk párhuzamost a z tengellyel. | AM67: 21 | AN67: ="" ->  | AO67: 21 | AP67: ="" -> 
K68: 13 | L68: C | M68: =IF(M1<K68,NA(),C18) ->  | N68: =IF(M1<K68,NA(),D18) ->  | P68: 22 | Q68: =D3 -> 45 | V68: 66 | AG68: 22 | AH68: =AH21 -> 6. lépés: Póluspont meghatározása | AI68: 22 | AJ68: =AH22 -> Ehhez először az Y ponton keresztűl húzzunk párhuzamost az y tengellyel. | AK68: 22 | AL68: =AH23 -> Ezután a Z ponton keresztűl húzzunk párhuzamost a z tengellyel. | AM68: 22 | AN68: =AH24 -> Az imént behúzott két tengely a Mohr körön fogja metszeni egymást. Ezt a metszéspontot nevezzük pólus pontnak és P-vel jelöljük | AO68: 22 | AP68: ="" -> 
B69: N | C69: =C61 -> 95 | D69: =-1*E59 -> 25 | K69: 16 | L69: I1 | M69: =IF(M1<K69,NA(),C18+C19) ->  | N69: =IF(M1<K69,NA(),0) ->  | V69: 67 | AG69: 23 | AH69: =AH25 -> 7. lépés: tehetetlenségi főtengelyek berajzolása | AI69: 23 | AJ69: ="" ->  | AK69: 23 | AL69: ="" ->  | AM69: 23 | AN69: ="" ->  | AO69: 23 | AP69: ="" -> 
B70: M | C70: =C62 -> 15 | D70: =E59 -> -25 | K70: 17 | L70: I2 | M70: =IF(M1<K70,NA(),C18-C19) ->  | N70: =IF(M1<K70,NA(),0) ->  | V70: 68 | Y70: 29 | Z70: n | AA70: =IF(M1<Y70,NA(),C16) ->  | AB70: =IF(M1<Y70,NA(),D16) ->  | AD70: 20 | AG70: 24 | AH70: =AH25 -> 7. lépés: tehetetlenségi főtengelyek berajzolása | AI70: 24 | AJ70: =AH26 -> A P pontot kössük össze az I1-ponttal. Így megkaptuk az első tehetetlenségi főtengelyt, jelöljük ezt ① -gyel | AK70: 24 | AL70: ="" ->  | AM70: 24 | AN70: ="" ->  | AO70: 24 | AP70: ="" -> 
E71: e | K71: 20 | L71: y | M71: =AA33 ->  | N71: =AB33 ->  | V71: 69 | AA71: =IF(M1<Y70,NA(),AA70+(D19*AD70/100)*COS((90+D3)*PI()/180)) ->  | AB71: =IF(M1<Y70,NA(),AB70+(D19*AD70/100)*SIN((90+D3)*PI()/180)) ->  | AG71: 25 | AH71: =AH25 -> 7. lépés: tehetetlenségi főtengelyek berajzolása | AI71: 25 | AJ71: =AH26 -> A P pontot kössük össze az I1-ponttal. Így megkaptuk az első tehetetlenségi főtengelyt, jelöljük ezt ① -gyel | AK71: 25 | AL71: =AH27 -> A P pontot ezután kössük össze az I2-ponttal. Így megkaptuk a második tehetetlenségi főtengelyt, jelöljük ezt ② -vel | AM71: 25 | AN71: ="" ->  | AO71: 25 | AP71: ="" -> 
B72: PN | C72: =C69-C16 -> 15 | D72: =D69-D16 -> -15 | E72: =C72/(C72^2+D72^2)^0.5 -> 0.7071067812 | F72: =D72/(C72^2+D72^2)^0.5 -> -0.7071067812 | K72: 21 | L72: z | M72: =AA41 ->  | N72: =AB41 ->  | V72: 70 | AG72: 26 | AH72: =AH25 -> 7. lépés: tehetetlenségi főtengelyek berajzolása | AI72: 26 | AJ72: =AH26 -> A P pontot kössük össze az I1-ponttal. Így megkaptuk az első tehetetlenségi főtengelyt, jelöljük ezt ① -gyel | AK72: 26 | AL72: =AH27 -> A P pontot ezután kössük össze az I2-ponttal. Így megkaptuk a második tehetetlenségi főtengelyt, jelöljük ezt ② -vel | AM72: 26 | AN72: =AH28 -> Megjegyzés: nyilakat úgy rajzoljuk be, hogy az ① és ② tengelyek irányai jobbsodrású rendszert alkossanak | AO72: 26 | AP72: ="" -> 
B73: PM | C73: =C70-C16 -> -65 | D73: =D70-D16 -> -65 | E73: =C73/(C73^2+D73^2)^0.5 -> -0.7071067812 | F73: =D73/(C73^2+D73^2)^0.5 -> -0.7071067812 | K73: 22 | L73: P | M73: =IF(M1<K73,NA(),C16) ->  | N73: =IF(M1<K73,NA(),D16) ->  | V73: 71 | Z73: arr1 | AA73: =AA71 ->  | AB73: =AB71 ->  | AD73: 7 | AG73: 27 | AH73: =AH25 -> 7. lépés: tehetetlenségi főtengelyek berajzolása | AI73: 27 | AJ73: =AH26 -> A P pontot kössük össze az I1-ponttal. Így megkaptuk az első tehetetlenségi főtengelyt, jelöljük ezt ① -gyel | AK73: 27 | AL73: =AH27 -> A P pontot ezután kössük össze az I2-ponttal. Így megkaptuk a második tehetetlenségi főtengelyt, jelöljük ezt ② -vel | AM73: 27 | AN73: =AH28 -> Megjegyzés: nyilakat úgy rajzoljuk be, hogy az ① és ② tengelyek irányai jobbsodrású rendszert alkossanak | AO73: 27 | AP73: =AH29 -> Ezzel kész vagyunk a tehetetlenségi főirányok meghatározásával is
K74: 24 | L74: ① | M74: =AA50 ->  | N74: =AB50 ->  | V74: 72 | AA74: =IF(M1<Y70,NA(),AA73+(D19*AD73/100)*COS((270+D3+AD74)*PI()/180)) ->  | AB74: =IF(M1<Y70,NA(),AB73+(D19*AD73/100)*SIN((270+D3+AD74)*PI()/180)) ->  | AD74: 20 | AG74: 28 | AH74: =AH30 -> Adott n és m irányhokhoz tartozó tehetetlenségi nyomatékok meghatározása | AI74: 28 | AJ74: ="" ->  | AK74: 28 | AL74: ="" ->  | AM74: 28 | AN74: ="" ->  | AO74: 28 | AP74: ="" -> 
K75: 25 | L75: ② | M75: =AA63 ->  | N75: =AB63 ->  | V75: 73 | AG75: 29 | AH75: =AH30 -> Adott n és m irányhokhoz tartozó tehetetlenségi nyomatékok meghatározása | AI75: 29 | AJ75: =AH31 -> Vegyük fel a póluspontban az adott n irányt | AK75: 29 | AL75: ="" ->  | AM75: 29 | AN75: ="" ->  | AO75: 29 | AP75: ="" -> 
B76: =ATAN((2*ABS(C3)/ABS(C6-C4)))*(180/PI())/2 -> 28.9973084 | K76: 29 | L76: n | M76: =AA71 ->  | N76: =AB71 ->  | V76: 74 | Z76: arr2 | AA76: =AA73 ->  | AB76: =AB73 ->  | AG76: 30 | AH76: =AH30 -> Adott n és m irányhokhoz tartozó tehetetlenségi nyomatékok meghatározása | AI76: 30 | AJ76: =AH31 -> Vegyük fel a póluspontban az adott n irányt | AK76: 30 | AL76: =AH32 -> Erre merőlegesen vegyük fel az m irányt | AM76: 30 | AN76: ="" ->  | AO76: 30 | AP76: ="" -> 
K77: 30 | L77: m | M77: =AA80 ->  | N77: =AB80 ->  | V77: 75 | AA77: =IF(M1<Y70,NA(),AA73+(D19*AD73/100)*COS((270+D3-AD74)*PI()/180)) ->  | AB77: =IF(M1<Y70,NA(),AB76+(D19*AD73/100)*SIN((270+D3-AD74)*PI()/180)) ->  | AG77: 31 | AH77: =AH30 -> Adott n és m irányhokhoz tartozó tehetetlenségi nyomatékok meghatározása | AI77: 31 | AJ77: =AH31 -> Vegyük fel a póluspontban az adott n irányt | AK77: 31 | AL77: =AH32 -> Erre merőlegesen vegyük fel az m irányt | AM77: 31 | AN77: =AH33 -> Hosszabbítsuk meg a vonalakat úgy, hogy metsszék a Mohr kört | AO77: 31 | AP77: ="" -> 
K78: 32 | L78: N | M78: =IF(M1<K78,NA(),C69) ->  | N78: =IF(M1<K78,NA(),D69) ->  | V78: 76 | AG78: 32 | AH78: =AH30 -> Adott n és m irányhokhoz tartozó tehetetlenségi nyomatékok meghatározása | AI78: 32 | AJ78: =AH34 -> n egyenes és a Mohr kör metszéspontja legyen N pont | AK78: 32 | AL78: ="" ->  | AM78: 32 | AN78: ="" ->  | AO78: 32 | AP78: ="" -> 
K79: 33 | L79: M | M79: =IF(M1<K79,NA(),C70) ->  | N79: =IF(M1<K79,NA(),D70) ->  | V79: 77 | Y79: 30 | Z79: m | AA79: =IF(M1<Y79,NA(),AA70) ->  | AB79: =IF(M1<Y79,NA(),AB70) ->  | AG79: 33 | AH79: =AH30 -> Adott n és m irányhokhoz tartozó tehetetlenségi nyomatékok meghatározása | AI79: 33 | AJ79: =AH34 -> n egyenes és a Mohr kör metszéspontja legyen N pont | AK79: 33 | AL79: =AH35 -> m egyenes és a Mohr kör metszéspontja legyen M pont | AM79: 33 | AN79: ="" ->  | AO79: 33 | AP79: ="" -> 
K80: 2 | L80: In | M80: =IF(M1<K80,NA(),C31) ->  | N80: =IF(M1<K80,NA(),0) ->  | V80: 78 | AA80: =IF(M1<Y79,NA(),AA79+(D19*AD70/100)*COS((180+D3)*PI()/180)) ->  | AB80: =IF(M1<Y79,NA(),AB79+(D19*AD70/100)*SIN((180+D3)*PI()/180)) ->  | AG80: 34 | AH80: =AH30 -> Adott n és m irányhokhoz tartozó tehetetlenségi nyomatékok meghatározása | AI80: 34 | AJ80: =AH34 -> n egyenes és a Mohr kör metszéspontja legyen N pont | AK80: 34 | AL80: =AH35 -> m egyenes és a Mohr kör metszéspontja legyen M pont | AM80: 34 | AN80: =AH36 -> N pontot vetítsük le a vízszintes és függőleges tengelyekre, így megkapjuk In és Inm tehetetlenségi nyomatékokat | AO80: 34 | AP80: ="" -> 
K81: 2 | L81: Inm | M81: =IF(M1<K81,NA(),0) ->  | N81: =IF(M1<K81,NA(),E28) ->  | V81: 79 | AG81: 35 | AH81: =AH30 -> Adott n és m irányhokhoz tartozó tehetetlenségi nyomatékok meghatározása | AI81: 35 | AJ81: =AH34 -> n egyenes és a Mohr kör metszéspontja legyen N pont | AK81: 35 | AL81: =AH35 -> m egyenes és a Mohr kör metszéspontja legyen M pont | AM81: 35 | AN81: =AH36 -> N pontot vetítsük le a vízszintes és függőleges tengelyekre, így megkapjuk In és Inm tehetetlenségi nyomatékokat | AO81: 35 | AP81: =AH37 -> M pontot vetítsük le a vízszintes és függőleges tengelyekre, így megkapjuk Im és -Inm tehetetlenségi nyomatékokat
V82: 80 | Z82: arr1 | AA82: =AA80 ->  | AB82: =AB80 -> 
V83: 81 | AA83: =IF(M1<Y79,NA(),AA82+(D19*AD73/100)*COS((D3+AD74)*PI()/180)) ->  | AB83: =IF(M1<Y79,NA(),AB82+(D19*AD73/100)*SIN((D3+AD74)*PI()/180)) -> 
V84: 82
V85: 83 | Z85: arr2 | AA85: =AA82 ->  | AB85: =AB82 -> 
V86: 84 | AA86: =IF(M1<Y79,NA(),AA82+(D19*AD73/100)*COS((D3-AD74)*PI()/180)) ->  | AB86: =IF(M1<Y79,NA(),AB85+(D19*AD73/100)*SIN((D3-AD74)*PI()/180)) -> 
V87: 85
V88: 86 | Y88: 31 | Z88: n_line | AA88: =IF(M1<Y88,NA(),C16) ->  | AB88: =IF(M1<Y88,NA(),D16) ->  | AD88: 10
V89: 87 | AA89: =IF(M1<Y88,NA(),C69+E72*D19*AD88/100) ->  | AB89: =IF(M1<Y88,NA(),D69+F72*D19*AD88/100) -> 
V90: 88
V91: 89 | Z91: m_line | AA91: =IF(M1<Y88,NA(),C16) ->  | AB91: =IF(M1<Y88,NA(),D16) -> 
V92: 90 | AA92: =IF(M1<Y88,NA(),C70+E73*D19*AD88/100) ->  | AB92: =IF(M1<Y88,NA(),D70+F73*D19*AD88/100) -> 
V93: 91
V94: 92
V95: 93
V96: 94
V97: 95 | Y97: 34 | Z97: N_line | AA97: =IF(M1<Y97,NA(),C69) ->  | AB97: 0
V98: 96 | AA98: =IF(M1<Y97,NA(),C69) ->  | AB98: =IF(M1<Y97,NA(),D69) -> 
V99: 97
V100: 98 | AA100: 0 | AB100: =IF(M1<Y97,NA(),D69) -> 
V101: 99 | AA101: =IF(M1<Y97,NA(),C69) ->  | AB101: =IF(M1<Y97,NA(),D69) -> 
V102: 100
V103: 101 | Y103: 35 | Z103: M_line | AA103: =IF(M1<Y103,NA(),C70) ->  | AB103: 0
V104: 102 | AA104: =IF(M1<Y103,NA(),C70) ->  | AB104: =IF(M1<Y103,NA(),D70) -> 
V105: 103
V106: 104 | AA106: 0 | AB106: =IF(M1<Y103,NA(),D70) -> 
V107: 105 | AA107: =IF(M1<Y103,NA(),C70) ->  | AB107: =IF(M1<Y103,NA(),D70) -> 
V108: 106
V109: 107
V110: 108
V111: 109
V112: 110
V113: 111
V114: 112
V115: 113
V116: 114
V117: 115
V118: 116
V119: 117
V120: 118
V121: 119
V122: 120
V123: 121
V124: 122
V125: 123
V126: 124
V127: 125
V128: 126
V129: 127
V130: 128 | W130: =IF($M$1<$U$2,NA(),$C$18+$C$19*COS(V130*PI()/180)) ->  | X130: =IF($M$1<$U$2,NA(),$C$19*SIN(V130*PI()/180)) -> 
V131: 129
V132: 130
V133: 131
V134: 132
V135: 133
V136: 134
V137: 135
V138: 136
V139: 137
V140: 138
V141: 139
V142: 140
V143: 141
V144: 142
V145: 143
V146: 144
V147: 145
V148: 146
V149: 147
V150: 148
V151: 149
V152: 150
V153: 151
V154: 152
V155: 153
V156: 154
V157: 155
V158: 156
V159: 157
V160: 158
V161: 159
V162: 160
V163: 161
V164: 162
V165: 163
V166: 164
V167: 165
V168: 166
V169: 167
V170: 168
V171: 169
V172: 170
V173: 171
V174: 172
V175: 173
V176: 174
V177: 175
V178: 176
V179: 177
V180: 178
V181: 179
V182: 180
V183: 181
V184: 182
V185: 183
V186: 184
V187: 185
V188: 186
V189: 187
V190: 188
V191: 189
V192: 190
V193: 191
V194: 192 | W194: =IF($M$1<$U$2,NA(),$C$18+$C$19*COS(V194*PI()/180)) ->  | X194: =IF($M$1<$U$2,NA(),$C$19*SIN(V194*PI()/180)) -> 
V195: 193
V196: 194
V197: 195
V198: 196
V199: 197
V200: 198
... 162 more rows
